Cogmind - Beta 13 @@@ ROGUE MODE // 2024.02.24 @ 17:51:00 Player: Minty Result: Destroyed by D-53 Grenadier with Mini Grenade Launcher Performance ------------- Evolutions (0) 0 Regions Visited (2) 400 Robots Destroyed (17) 85 Value Destroyed (160) 160 Prototype IDs (0) 0 Alien Tech Used (0) 0 Bonus (0) 0 TOTAL SCORE: 645 Bonus ------- None Cogmind --------- Core Integrity 0/250 Matter 300/300 Energy 61/100 System Corruption 0% Temperature Cool (22) Movement Core (150) Ox2 Location -10/Mines Parts ------- > --- POWER (1) -------- (None) > --- PROPULSION (2) --- (None) > --- UTILITY (2) ------ Small Storage Unit > --- WEAPON (2) ------- Medium Laser > --- INVENTORY (8) ---- Aluminum Leg Aluminum Leg Sensor Array Signal Interpreter Heavy Explosive Trap Peak State ------------ > --- POWER ------------ Ion Engine > --- PROPULSION ------- Aluminum Leg Aluminum Leg > --- UTILITY ---------- Small Storage Unit Core Shielding > --- WEAPON ----------- Medium Laser Medium Laser > --- INVENTORY -------- Light Ion Engine Light Treads Light Treads Wheel Wheel Small Laser [Rating: 7] Favorites ----------- Power Ion Engine Engine Ion Engine Propulsion Aluminum Leg Leg Aluminum Leg Utility Small Storage Unit Storage Small Storage Unit Protection Core Shielding Weapon Medium Laser Energy Gun Medium Laser Energy Cannon Beam Cannon Build | -11 -10 -10 ------- Run | Yrd Mat Min Slots Evolved . | . . . Power . | . . . Propulsion . | . . . Utility . | . . . Weapon . | . . . Parts Attached 7 | . 4 3 Power 1 | . 1 . Engine 1 | . 1 . Core . | . . . Reactor . | . . . Propulsion 2 | . 2 . Treads . | . . . Leg 2 | . 2 . Wheel . | . . . Hover . | . . . Flight . | . . . Utility 1 | . 1 . Device . | . . . Storage . | . . . Processor . | . . . Hackware . | . . . Protection 1 | . 1 . Artifact . | . . . Weapon 3 | . . 3 Energy Gun 2 | . . 2 Energy Cannon 1 | . . 1 Ballistic Gun . | . . . Ballistic Cannon . | . . . Launcher . | . . . Special Weapon . | . . . Impact Weapon . | . . . Slashing Weapon . | . . . Piercing Weapon . | . . . Special Melee Weapon . | . . . Unidentified Prototypes . | . . . Parts Lost 7 | . . 7 Power 1 | . . 1 Propulsion 2 | . . 2 Utility 1 | . . 1 Weapon 3 | . . 3 Highest Loss Streak 7 | . . 7 To Critical Strikes . | . . . Average Slot Usage (%) 97 | . 98 96 Engine 13 | . 14 12 Leg 27 | . 28 26 Storage 14 | . 14 14 Protection 13 | . 12 14 Energy Gun 27 | . 28 27 Naked Turns . | . . . Heaviest Build 15 | 14 15 15 Greatest Support 20 | 20 20 20 Greatest Overweight (x) . | . . . Average Overweight (x) . | . . . Largest Inventory Capacity 8 | 8 8 8 Average Capacity 8 | 8 8 8 Most Carried 8 | 6 8 8 Average Carried 7 | 6 7 7 Final Capacity 8 | 8 8 8 Final Carried 8 | 6 8 5 Class Distribution -------------------- 100% | Mutant Dominant Class ---------------- Mutant | -10/Materials Mutant | -10/Mines Resources | -11 -10 -10 ----------- Run | Yrd Mat Min Matter Collected 240 | 200 40 . Remotely . | . . . Salvage Created 303 | . 238 65 Parts 27 | . 19 8 Haulers Intercepted 2 | . 2 . Recyclers Shooed . | . . . Parts Field Recycled . | . . . Retrieved Matter . | . . . Parts Self-Destructed . | . . . Prevented . | . . . Kills | -11 -10 -10 ------- Run | Yrd Mat Min Combat Hostiles Destroyed 14 | . 9 5 Guns 14 | . 9 5 Classes Destroyed 3 | . 3 . Hauler 2 | . 2 . Watcher 1 | . 1 . Swarmer 14 | . 9 5 Best Kill Streak 5 | . 5 3 Combat Bots Only 5 | . 5 3 Max Kills in Single Turn 2 | . 2 1 Gunslinging 1 | . 1 . Exploded . | . . . Melee . | . . . Uniques/NPCs Destroyed . | . . . Combat | -11 -10 -10 -------- Run | Yrd Mat Min Hostile Shots Fired 90 | . 49 41 Missed 26 | . 16 10 Damage Taken 968 | . 281 687 Core 256 | . 39 217 Absorbed by Shields . | . . . Redirected to Shielding 50 | . 7 43 Core Remaining (%) 100 | 100 . . Volleys Fired 35 | . 23 12 Largest 2 | . 2 2 Hottest 110 | . 100 110 Shots Fired 68 | . 46 22 Gun 66 | . 46 20 Cannon 2 | . . 2 Launcher . | . . . Special . | . . . Kinetic . | . . . Thermal 68 | . 46 22 Explosive . | . . . Electromagnetic . | . . . Robot Hit Streak 7 | . 7 5 Robot Miss Streak 5 | . 3 5 Penetration Max . | . . . Secondary Targets 4 | . 3 1 Max Gunslinging Chain 1 | . 1 1 Shots Hit Robots 40 | . 28 12 Core Hits 24 | . 16 8 Critical Kills . | . . . Critical Parts Destroyed . | . . . Critical Strikes 3 | . 2 1 Burn 3 | . 2 1 Melee Attacks . | . . . Impact . | . . . Slashing . | . . . Piercing . | . . . Sneak Attacks . | . . . Combat Hostiles . | . . . Follow-up Attacks . | . . . Damage Inflicted 560 | . 379 181 Guns 512 | . 375 137 Cannons 35 | . . 35 Explosions . | . . . Melee . | . . . Ramming 13 | . 4 9 Kinetic . | . . . Thermal 547 | . 375 172 Explosive . | . . . Electromagnetic . | . . . Impact . | . . . Slashing . | . . . Piercing . | . . . Highest Corruption . | . . . Average Corruption . | . . . Corruption Purged . | . . . Corruption Blocked . | . . . Overload Shots . | . . . Overflow Damage 3 | . . 3 Projectiles 3 | . . 3 Explosions . | . . . Melee . | . . . Knockbacks . | . . . Impact . | . . . Kinetic . | . . . Secondary . | . . . Self-Inflicted Damage . | . . . Shots . | . . . Rammed . | . . . Targets Rammed 3 | . 1 2 Kicked 3 | . 1 2 Crushed . | . . . Highest Temperature 273 | . 273 156 Average Temperature 76 | . 86 55 Received Heat Transfer 42 | . 42 . Effects 4 | . 4 . Energy Bleed 2 | . 2 . Interference 2 | . 2 . Siege Activations . | . . . Robots Corrupted . | . . . Combat Hostiles . | . . . Parts Fried . | . . . Impact Corruptions . | . . . Robots Melted . | . . . Combat Hostiles . | . . . Parts Melted 4 | . 4 . Heat Transferred 1813 | . 1258 555 Parts Sabotaged . | . . . Parts Stolen . | . . . Parts Stripped . | . . . Power Chain Reactions . | . . . Alert | -11 -10 -10 ------- Run | Yrd Mat Min Peak Influence 276 | . 276 267 Initial 107 | . . 107 Average 182 | . 168 203 Maximum Alert Level 1 | . 1 1 Low Security (%) 57 | 100 51 63 Level 1 42 | . 48 36 Level 2 . | . . . Level 3 . | . . . Level 4 . | . . . Level 5 . | . . . High Security . | . . . Max Security . | . . . Squads Dispatched 1 | . 1 . Investigation . | . . . Extermination . | . . . Reinforcement 1 | . 1 . Assault . | . . . Garrison . | . . . Intercept . | . . . Searches Triggered . | . . . Construction Impeded . | . . . Haulers Reinforced . | . . . Active Scanning Responses . | . . . Cargo Convoy Interrupts . | . . . Stealth | -11 -10 -10 --------- Run | Yrd Mat Min Distress Signals 1 | . 1 . Communications Jammed . | . . . Distress Signals . | . . . Times Spotted 23 | . 13 10 Peak Tracking Total 7 | . 7 5 Tactical Retreats 1 | . . 1 Traps | -11 -10 -10 ------- Run | Yrd Mat Min Traps Triggered . | . . . Indirectly . | . . . Trap Hack Attempts . | . . . Triggered . | . . . Disarmed . | . . . Reprogrammed . | . . . Reused 1 | . . 1 Traps Extracted . | . . . Installed 3 | . . 3 Triggered 1 | . . 1 Most Traps Carried 2 | . . 2 Machines | -11 -10 -10 ---------- Run | Yrd Mat Min Machines Disabled . | . . . Max in Single Turn . | . . . Machines Repaired . | . . . Machines Dismantled . | . . . Machines Sabotaged . | . . . Overloaded Fab Kills . | . . . Hacking | -11 -10 -10 --------- Run | Yrd Mat Min Machines Accessed 1 | . 1 . Terminals 1 | . 1 . Fabricators . | . . . Repair Stations . | . . . Recycling Units . | . . . Scanalyzers . | . . . Garrison Access . | . . . Total Hacks 4 | . 4 . Successful 2 | . 2 . Failed 2 | . 2 . Catastrophic 1 | . 1 . Database Lockouts . | . . . Manual 3 | . 3 . Terminals 4 | . 4 . Fabricators . | . . . Repair Stations . | . . . Recycling Units . | . . . Scanalyzers . | . . . Garrison Access . | . . . Terminal Hacks 1 | . 1 . Locate Traps 1 | . 1 . Fabricator Hacks . | . . . Repair Station Hacks . | . . . Recycling Unit Hacks . | . . . Scanalyzer . | . . . Garrison Access Hacks . | . . . Unauthorized Hacks 1 | . 1 . Terminals 1 | . 1 . Botnet 1 | . 1 . Fabricators . | . . . Repair Stations . | . . . Recycling Units . | . . . Scanalyzers . | . . . Garrison Access . | . . . Data Cores Recovered . | . . . Used . | . . . Hacking Detections 1 | . 1 . Full Trace Events . | . . . Feedback Events . | . . . Feedback Blocked . | . . . Robot Schematics Acquired . | . . . Robots Built . | . . . Authchips . | . . . Time . | . . . Total Robot Build Rating . | . . . Part Schematics Acquired . | . . . Parts Built . | . . . Authchips . | . . . Time . | . . . Total Part Build Rating . | . . . Parts Repaired . | . . . Time . | . . . Parts Recycled . | . . . Recycled Matter . | . . . Retrieved Matter . | . . . Retrieved Components . | . . . Parts Scanalyzed . | . . . Part Schematics Acquired . | . . . Parts Damaged . | . . . Bothacking | -11 -10 -10 ------------ Run | Yrd Mat Min Used RIF Installer . | . . . Robots Hacked . | . . . Non-combat . | . . . Combat . | . . . Robot Hacks Applied . | . . . Relay Couplers Released . | . . . Fabnet Peak Effective % . | . . . Robots Rewired . | . . . Allies Hacked . | . . . Hacks Repelled . | . . . Allies | -11 -10 -10 -------- Run | Yrd Mat Min Total Allies . | . . . Largest Group . | . . . Highest-Rated Group . | . . . Highest-Rated Ally . | . . . Total Orders . | . . . Ally Attacks . | . . . Total Damage . | . . . Kills . | . . . Allies Corrupted . | . . . Allies Melted . | . . . Intel | -11 -10 -10 ------- Run | Yrd Mat Min Robot Analysis Total . | . . . Derelict Logs Recovered . | . . . Drone Launches . | . . . Drone Recoveries . | . . . Exploration | -11 -10 -10 ------------- Run | Yrd Mat Min Turns Passed 459 | 2 255 202 Spaces Moved 240 | 2 139 99 Core . | . . . Treads . | . . . Legs 240 | 2 139 99 Wheels . | . . . Hover . | . . . Flight . | . . . Fastest Speed 120 | 120 120 120 Average Speed 120 | 120 120 120 Slowest Speed 120 | 120 120 120 Overloaded Moves . | . . . Propulsion Burnouts . | . . . Robots Hopped . | . . . Cave-ins Triggered . | . . . Exploration Rate (%) 16 | 1 27 20 Regions Visited 2 Branch Regions 1 Pre-discovered Areas . | . . . Known Exits Taken . | . . . Unknown Exits Taken 2 | 1 1 . Scrap Searched . | . . . Spaces Dug . | . . . Terrain Destroyed . | . . . Melee . | . . . Projectile . | . . . AOE . | . . . Terrain Rammed . | . . . Walls Destroyed . | . . . Machines Disabled . | . . . Actions | -11 -10 -10 --------- Run | Yrd Mat Min Total 351 | 1 188 162 Wait 33 | . 1 32 Move 238 | 1 138 99 Hop . | . . . Pick Up 15 | . 10 5 Fast Attach 1 | . 1 . Attach 2 | . . 2 Detach . | . . . Swap 4 | . 3 1 Drop 17 | . 11 6 Fire 35 | . 23 12 Melee . | . . . Ram . | . . . Kick 3 | . 1 2 Crush . | . . . Escape Stasis . | . . . Rewire . | . . . Trap 3 | . . 3 Miscellaneous . | . . . Route ------- -11/Scrapyard -10/Materials -10/Mines History --------- Turn | Location | Event 1 | -11/Scrapyard | Discovered new exit (range 1) 3 | -11/Scrapyard | Entered Materials 241 | -10/Materials | Discovered new exit (range 8) 258 | -10/Materials | Entered Mines 300 | -10/Mines | Build established: Mutant 327 | -10/Mines | Found a hidden stash of uninstalled traps 371 | -10/Mines | Assembled infested the area 449 | -10/Mines | Core integrity fell below 50% 457 | -10/Mines | Core integrity fell below 20% 460 | -10/Mines | Destroyed by D-53 Grenadier with Mini Grenade Launcher Last Messages --------------- 00426_ The unstable cave ceiling collapses. 00428_ K-01 Serf collects debris. 00431_ Dropped Heavy Explosive Trap. 00444_ Acquired Heavy Explosive Trap. 00449_ Ion Engine destroyed. 00450_ Med. Laser destroyed. 00451_ U-05 Engineer builds a Wall. 00452_ Aluminum Leg destroyed. 00452_ D-53 Grenadier suffers critical hit (Burn). 00452_ Destroyed Shock Absorption System. 00453_ D-53 Grenadier heat damages Imp. Light Armor Plating. 00453_ The unstable cave ceiling collapses. 00454_ Med. Laser destroyed. 00454_ D-53 Grenadier destroyed. 00455_ The unstable cave ceiling collapses. 00455_ Destroyed Shock Absorption System. 00456_ Beam Cannon destroyed. 00458_ Aluminum Leg destroyed. 00459_ U-05 Engineer lays Concrete. 00460_ Core Shielding destroyed. Map ----- +----------------------------------------------------+ | | | | | | | | | | | | | | | | | | | | | | | | | | | ???????????????????????????????? | | ???????????????????????????????? | | ????????????????#??????????????? | | ???????????????? ??????????????? | | ???????????????" ??????????????? | | ??????????????"" ???????####???? | | ??????????????"" ??????## ##??? | | ?????????????? " ?????## #??? | | ??????????????#%"????## ##?? | | ??????????????#" #??## ##? | | ??????????????#* #??# #? | | ??????????????#%[#??# #? | | ??????????????#= ##?# @ #? | | ?????????????## #?# #? | | ????????????## ### #? | | ????????????# # ### d ##? | | ?????????????# = ## ##?? | | ????????????## % # #??? | | ????????????# ###% ##??? | | ????????????## *% u ##??? | | ?????????????# [ u ##?? | | ?????????????### #### ##? | | ???????????????## ###### #? | | ????????????????# ##???# #? | | ????????????????# #????# ##? | | ????????????????# #????# ###?? | | ????????????????# ###### ###???? | | ????????????????# # #?????? | | ????????????##### #?????? | | ???????# #### = #####?????? | | ???????# ###! #?????????? | | ???????###### #?## #????????? | | ????????????# #??#!* #????????? | | ????????????# #??## ##????????? | | ????????????# #???####?????????? | | ????????????# #????????????????? | | ??????####### ######???????????? | +----------------------------------------------------+ Best States ------------- Heat Dissipation 25 Energy Generation 10 Energy Capacity 250 Matter Stores 300 Matter Capacity 300 Sight Range 16 Terrain Scan Density 10 Core Shielding 20 Evasion (%) 55 Item Schematics ----------------- None Robot Schematics ------------------ None Fabricated ------------ Nothing Alien Tech Used ----------------- None Achievements -------------- None Challenges ------------ None Game ------ Seed EnhancedSignalMapper Manual? 0 Play Time 00:04:28 Cumulative 671.5 hours Start 2024.02.24 @ 17:47:24 End 2024.02.24 @ 17:51:00 Sessions 1 Manual Loads 0 Difficulty Rogue Special Mode None Game No. 687 Rogue 412 Adventurer 123 Explorer 152 Win Type - Total 25 Types 19/0/4/1/0/0/0/1/0 Lore% 80 Gallery% 91 Achievement% 76 Wizard Run 0 Options --------- Layout 0 ASCII 0 Keyboard 1 Movement Numpad Keybinds 0 Fullscreen 2 Font 18/SmallcapsGlow Map View 76x50 Zoom Use 0% Tactical HUD 1 Map Filters NONE Filters NONE Steam 1 RUN: 45ab15a1-ec43-4fbb-818e-cfa321cc6fb4